bitfinex/quotes_ETHUSD_20260121
["timestamp","ask_amount","ask_price","bid_price","bid_amount"]
[1768961578305,0.002,2973.2,2973.1,14.54313817]
[1768961578874,0.002,2973.2,2973.1,3.33]
[1768961581423,0.002,2973.2,2973.1,15.65313817]
[1768961581628,0.002,2973.4,2973.2,11.76813817]
[1768961582379,0.002,2973.6,2973.2,11.76813817]
[1768961583335,12.28502855,2973.6,2973.1,3.885]
[1768961583512,12.28502855,2973.6,2973.1,15.65313817]
[1768961583837,12.28502855,2973.6,2973.1,16.20813817]
[1768961584415,12.28502855,2973.6,2973.2,11.76813817]
[1768961584792,0.002,2973.6,2973.2,13.61075199]
[1768961586198,12.28502855,2973.6,2973.2,0.555]
[1768961587324,12.28502855,2973.6,2973.2,12.32313817]
[1768961587931,0.002,2973.6,2973.2,12.32313817]
[1768961588309,12.28502855,2973.6,2973.2,0.555]
[1768961588928,12.28502855,2973.6,2973.2,1.11]
[1768961589093,12.28502855,2973.6,2973.2,12.87813817]
[1768961589296,12.28502855,2973.6,2973.2,1.11]
[1768961589509,12.28502855,2973.6,2973.2,12.87813817]
[1768961591224,12.28502855,2973.6,2973.2,1.11]
[1768961591432,12.28502855,2973.6,2973.4,0.001]
[1768961591634,0.002,2973.4,2973.2,1.665]
[1768961592528,12.28502855,2973.4,2973.2,1.665]
[1768961593921,12.28502855,2973.4,2973.2,2.22]
[1768961594933,12.21123787,2973.4,2973.2,2.22]
[1768961595139,0.002,2973.6,2973.3,11.76813817]
[1768961595313,0.002,2973.8,2973.3,11.76813817]
[1768961595840,11.86731206,2973.8,2973.3,11.76813817]
[1768961596228,11.86731206,2973.8,2973.3,13.0871465]
[1768961596428,11.86731206,2973.8,2973.3,0.555]
[1768961596739,12.42031206,2973.8,2973.2,1.42976105]
[1768961597715,11.86531206,2973.7,2973.2,1e-08]
[1768961598845,11.86531206,2973.7,2973.2,0.55500001]
[1768961599053,0.553,2973.6,2973.2,0.55500001]
[1768961599419,12.41831206,2973.6,2973.2,0.55500001]
[1768961600518,13.66034327,2973.6,2973.2,1e-08]
[1768961600856,13.66034327,2973.6,2973.1,4.44]
[1768961600857,11.86531206,2973.5,2973.1,4.44]
[1768961601148,11.86531206,2973.5,2973.0,2.665]
[1768961601350,11.86531206,2973.5,2973.1,0.555]
[1768961601651,11.8086021,2973.3,2973.1,1e-08]
[1768961602215,12.3616021,2973.2,2973.1,1e-08]
[1768961602514,11.88739277,2973.0,2972.4,13.03754629]
[1768961602716,11.88739277,2973.0,2972.7,0.555]
[1768961603321,11.88739277,2973.0,2972.7,0.37957279]
[1768961603547,12.99734138,2972.9,2972.2,13.04054629]
[1768961603856,12.99734138,2972.9,2972.7,0.555]
[1768961604652,12.3616021,2972.8,2972.2,13.04054629]
[1768961605848,0.553,2972.9,2972.2,13.04054629]
[1768961606017,0.553,2972.9,2972.2,13.59554629]
[1768961607338,1.79703928,2972.9,2972.2,13.59554629]
[1768961607760,11.80860208,2972.8,2972.2,1.111]
[1768961607919,11.80860208,2972.8,2972.2,13.59554629]
[1768961608433,11.80860208,2972.8,2972.2,14.15054629]
[1768961608946,13.60564136,2972.9,2972.2,14.15054629]
[1768961609323,13.60564136,2972.9,2972.2,1.666]
[1768961609324,13.16916622,2972.8,2972.2,1.666]
[1768961609528,11.80860208,2972.6,2972.1,0.53399734]
[1768961609729,11.80860208,2972.4,2972.1,0.53399734]
[1768961610425,11.80860208,2972.4,2972.0,2.22]
[1768961610624,13.04476229,2972.3,2972.0,2.775]
[1768961611452,0.553,2972.5,2972.0,15.25954629]
[1768961613247,0.553,2972.5,2972.0,15.81454629]
[1768961614667,13.16916622,2972.8,2972.1,12.48454629]
[1768961614861,0.553,2972.7,2972.1,12.48454629]
[1768961615066,12.36160208,2972.7,2972.1,12.48454629]
[1768961615240,1.37221662,2972.6,2972.1,12.48454629]
[1768961615764,1.37221662,2972.6,2972.2,0.001]
[1768961615964,1.37221662,2972.6,2972.1,13.03954629]
[1768961617576,0.553,2972.5,2972.1,13.03954629]
[1768961618072,0.553,2972.5,2972.1,13.59454629]
[1768961619358,12.36160208,2972.6,2972.1,13.59454629]
[1768961619674,13.04476229,2972.5,2972.1,13.59454629]
[1768961620446,13.04476229,2972.5,2972.1,14.14954629]
[1768961622383,13.04476229,2972.5,2972.1,1.665]
[1768961622753,13.04476229,2972.5,2972.0,3.33]
[1768961623074,11.80860208,2972.4,2972.0,3.33]
[1768961623276,13.50478871,2972.4,2972.0,3.33]
[1768961625661,13.50478871,2972.4,2972.0,3.885]
[1768961627882,13.50478871,2972.4,2972.2,0.001]
[1768961628064,11.81060208,2972.3,2972.0,4.44]
[1768961628456,11.81060208,2972.3,2972.0,4.32848785]
[1768961628659,13.28509697,2972.3,2972.0,4.32848785]
[1768961629283,11.81060208,2972.3,2972.0,4.32848785]
[1768961629989,0.002,2972.3,2972.0,4.32848785]
[1768961630378,0.002,2972.3,2972.0,4.88348785]
[1768961630683,0.002,2972.3,2972.0,17.16833182]
[1768961632990,0.002,2972.3,2972.0,17.72333182]
[1768961633974,11.81060208,2972.3,2972.0,5.43848785]
[1768961634386,0.002,2972.3,2972.0,17.72333182]
[1768961635290,0.002,2972.3,2972.0,18.27833182]
[1768961637202,0.002,2972.3,2972.0,18.15905301]
[1768961637387,0.002,2972.3,2972.1,12.28484397]
[1768961640199,0.002,2972.3,2972.1,12.83984397]
[1768961640580,0.002,2972.3,2972.1,11.53098231]
[1768961640995,11.82413232,2972.2,2972.0,6.42920904]
[1768961641674,11.82613232,2972.3,2972.0,6.42920904]
[1768961642702,11.82613232,2972.3,2972.0,6.98420904]
[1768961644799,11.82613232,2972.3,2972.0,6.66947474]
[1768961644967,13.00894555,2972.3,2972.0,6.56455697]
[1768961645305,11.82613232,2972.3,2972.0,6.56455697]
[1768961646800,0.002,2972.3,2972.0,18.84940094]
[1768961646975,0.002,2972.3,2972.1,12.28484397]
[1768961647375,0.002,2972.3,2972.1,12.83984397]
[1768961648204,11.82413232,2972.2,2971.9,1.11]
[1768961648379,1.67234974,2972.2,2971.9,13.39484397]
[1768961648577,0.002,2972.3,2971.9,13.39484397]
[1768961648967,11.82613232,2972.3,2971.9,1.11]
[1768961649171,11.82613232,2972.3,2971.9,0.50765425]
[1768961649370,11.82613232,2972.3,2971.9,0.20668379]
[1768961649610,11.82613232,2972.3,2971.9,0.55500001]
[1768961649816,11.82613232,2972.3,2971.9,0.25203395]
[1768961650123,11.82413232,2972.1,2971.6,12.83784397]
[1768961651106,11.82613232,2972.1,2971.6,12.83784397]
[1768961652022,11.82613232,2972.1,2971.6,13.39284397]
[1768961654298,0.002,2972.1,2971.6,13.39284397]
[1768961654498,0.002,2972.1,2971.6,13.94784397]
[1768961655427,0.002,2972.3,2971.6,15.34272837]
[1768961656724,0.002,2972.3,2971.8,11.95483098]
[1768961657118,0.002,2972.5,2971.8,11.95483098]
[1768961659217,12.93478403,2973.0,2972.0,4.8973651]
[1768961659410,12.93478403,2973.2,2972.1,12.99756749]
[1768961659727,12.93478403,2973.2,2972.1,12.50783098]
[1768961661019,3.36327066,2973.3,2972.4,11.95483098]
[1768961661020,12.93478403,2973.3,2972.4,11.95483098]
[1768961661236,12.93478403,2973.3,2972.6,11.95483098]
[1768961661405,12.93678403,2973.5,2972.6,11.95483098]
[1768961661600,12.93678403,2973.5,2972.7,11.95483098]
[1768961661601,0.002,2973.5,2972.7,11.95483098]
[1768961662216,0.002,2973.7,2972.9,4.8973651]
[1768961662435,0.002,2973.8,2973.3,11.95483098]
[1768961662612,0.002,2974.1,2973.6,11.95483098]
[1768961662812,0.002,2974.8,2973.9,11.95483098]
[1768961663034,12.95071253,2974.6,2973.9,11.95483098]
[1768961663242,12.93478403,2974.4,2973.3,11.95483098]
[1768961663451,12.93478403,2974.1,2972.6,8.81635603]
[1768961663605,12.93478403,2974.1,2972.8,3.36383207]
[1768961663806,12.93478403,2974.1,2972.9,11.95483098]
[1768961664037,1.78321491,2974.0,2972.9,11.95483098]
[1768961664204,14.71799894,2974.0,2972.9,12.50983098]
[1768961665731,14.71799894,2974.0,2973.0,11.95483098]
[1768961665937,12.93478403,2974.4,2973.3,11.95483098]
[1768961666636,12.93478403,2974.4,2973.3,12.50983098]
[1768961668037,12.93478403,2974.4,2973.3,15.87308348]
[1768961668239,12.93478403,2974.4,2973.4,11.95483098]
[1768961668424,1.42298553,2974.3,2973.6,11.95483098]
[1768961668628,1.29507125,2974.5,2973.6,11.95483098]
[1768961668829,12.95071253,2974.6,2973.6,11.95483098]
[1768961669137,12.95071253,2974.6,2973.6,12.50983098]
[1768961670341,12.93478403,2974.5,2973.6,12.50983098]
[1768961671518,12.93478403,2974.5,2973.6,13.06483098]
[1768961672109,12.93478403,2974.4,2973.6,13.06483098]
[1768961672309,14.56445809,2974.3,2973.6,13.06483098]
[1768961674042,14.56445809,2974.3,2973.7,0.553]
[1768961674716,14.56445809,2974.3,2973.7,0.503]
[1768961675037,14.56445809,2974.3,2973.8,0.001]
[1768961676137,12.93478403,2974.2,2973.6,1.665]
[1768961676342,14.39142984,2974.2,2973.6,1.665]
[1768961676647,14.39142984,2974.2,2973.6,2.22]
[1768961678846,12.93478403,2974.1,2973.6,2.22]
[1768961679023,12.93478403,2974.1,2973.6,2.775]
[1768961679342,1.45664581,2974.2,2973.6,2.775]
[1768961679343,14.37392701,2974.0,2973.6,2.16939661]
[1768961679531,14.37392701,2974.0,2973.6,1.83630714]
[1768961680038,14.37392701,2974.0,2973.6,1e-08]
[1768961681545,12.93478403,2973.9,2973.3,0.555]
[1768961681748,12.93478403,2973.9,2973.3,12.50983098]
[1768961681926,14.37217673,2973.8,2973.3,12.50983098]
[1768961682819,1.4373927,2973.8,2973.3,12.50983098]
[1768961683148,14.37217673,2973.8,2973.3,12.50983098]
[1768961683814,14.37217673,2973.8,2973.3,13.06483098]
[1768961684015,12.93478403,2973.7,2973.0,11.95483098]
[1768961684215,14.3720017,2973.7,2973.0,12.50783098]
[1768961685345,12.68431309,2973.6,2973.0,12.50783098]
[1768961686817,12.68431309,2973.6,2973.0,13.06283098]
[1768961687141,12.68431309,2973.4,2973.0,0.555]
[1768961689458,12.68431309,2973.4,2973.0,1.11]
[1768961691029,1.41215308,2973.5,2973.0,13.16236704]
[1768961691229,12.68431309,2973.5,2973.0,13.16236704]
[1768961692131,12.68431309,2973.5,2973.0,13.71736704]
[1768961693372,12.68431309,2973.7,2973.0,13.71736704]
[1768961694753,12.68431309,2973.7,2973.0,14.27236704]
[1768961697438,12.68431309,2973.7,2973.0,14.82736704]
[1768961697637,14.34431591,2973.7,2973.0,14.82736704]
[1768961699370,14.34431591,2973.7,2973.2,0.001]
[1768961699668,0.002,2973.5,2973.2,0.001]
[1768961699965,0.002,2973.5,2973.2,0.556]
[1768961701433,0.002,2973.5,2973.0,2.775]
[1768961701434,12.68631309,2973.5,2973.0,2.775]
[1768961701637,12.68431309,2973.3,2973.0,2.775]
[1768961702440,1.26863131,2973.4,2973.0,15.38236704]
[1768961702640,12.68631309,2973.5,2973.0,15.38236704]
[1768961703375,12.68631309,2973.5,2973.1,12.05236704]
[1768961704438,0.002,2973.5,2973.1,12.05236704]
[1768961704937,0.002,2973.5,2973.1,12.60736704]
[1768961706642,0.002,2973.7,2973.2,12.05236704]
[1768961706882,0.002,2973.7,2973.4,12.05236704]
[1768961707385,12.68631309,2973.7,2973.4,0.555]
[1768961707586,12.68631309,2973.7,2973.1,0.555]
[1768961707741,12.68431309,2973.6,2973.1,0.555]
[1768961707949,0.002,2973.7,2973.1,12.60736704]
[1768961708164,0.002,2973.7,2973.3,12.05236704]
[1768961708472,3.36432287,2974.2,2973.4,12.05236704]
[1768961708473,0.002,2974.2,2973.4,12.05236704]
[1768961709041,0.002,2974.2,2973.7,12.05236704]
[1768961709346,0.002,2974.4,2974.0,12.05236704]
[1768961712161,0.002,2974.4,2974.0,12.60736704]
[1768961714661,0.002,2974.4,2974.0,13.16236704]
[1768961717190,13.64761406,2974.4,2974.0,1.53158434]
[1768961717347,13.64761406,2974.4,2973.6,0.555]
[1768961717348,12.3753899,2974.2,2973.6,0.555]
[1768961717548,12.3753899,2973.9,2973.3,0.001]
[1768961717785,12.9283899,2973.9,2973.3,0.001]
[1768961718684,12.9283899,2973.9,2973.3,11.97816164]
[1768961718883,14.15751614,2973.8,2973.3,11.97816164]
[1768961719091,14.15751614,2973.8,2973.3,0.001]
[1768961719588,14.15751614,2973.8,2973.3,0.556]
[1768961720788,14.15751614,2973.8,2973.3,12.53316164]
[1768961722392,14.15751614,2973.8,2973.3,13.08816164]
[1768961722597,13.84644151,2973.7,2973.3,13.08816164]
[1768961724109,0.002,2973.5,2973.3,13.08816164]
[1768961724896,12.3773899,2973.5,2973.3,1.666]
[1768961725765,12.3773899,2973.5,2973.3,1e-08]
[1768961727390,12.3773899,2973.5,2973.3,0.55500001]
[1768961728794,0.002,2973.5,2973.3,0.55500001]
[1768961729692,0.002,2973.5,2973.3,1.11000001]
[1768961730629,0.002,2973.5,2973.0,3.33]
[1768961730630,12.3753899,2973.3,2973.0,3.33]
[1768961731013,12.3753899,2973.4,2973.0,15.30716164]
[1768961732097,12.3753899,2973.4,2973.0,15.86216164]
[1768961734142,12.3753899,2973.4,2973.0,3.885]
[1768961734628,12.3753899,2973.4,2973.0,4.44]
[1768961734929,13.61312889,2973.4,2973.0,4.44]
[1768961736123,13.61312889,2973.4,2973.0,3.61680215]
[1768961736328,13.61312889,2973.4,2973.2,0.001]
[1768961736632,13.61312889,2973.4,2973.0,3.22044965]
[1768961736833,13.61312889,2973.4,2973.0,3.37908446]
[1768961737001,14.12861396,2973.3,2973.0,2.98076229]
[1768961737328,14.12861396,2973.3,2973.0,2.55409972]
[1768961737528,14.12861396,2973.3,2973.0,2.15772056]
[1768961738512,14.12861396,2973.3,2973.0,1.36495618]
[1768961738712,14.12861396,2973.3,2973.0,0.96857095]
[1768961739333,14.12861396,2973.3,2973.0,1.52357095]
[1768961739714,14.12861396,2973.3,2973.0,0.72884437]
[1768961739917,14.12861396,2973.3,2973.0,0.33245305]
[1768961740940,14.12861396,2973.3,2972.9,0.50500001]
[1768961741142,3.91905121,2973.5,2972.9,1e-08]
[1768961741143,13.7882513,2973.2,2972.9,1e-08]
[1768961741518,13.7882513,2973.2,2972.9,0.55500001]
[1768961741728,13.7882513,2973.2,2972.9,0.15859086]
[1768961741928,13.7882513,2973.2,2972.8,11.97716164]
[1768961742244,13.7882513,2973.2,2972.7,11.97716164]
[1768961742661,12.3753899,2973.0,2972.6,0.555]
[1768961742942,12.3753899,2972.7,2972.1,11.97716164]
[1768961744117,12.3753899,2972.7,2972.1,12.53216164]
[1768961745282,12.63392864,2972.6,2972.1,0.15662347]
[1768961745415,12.63392864,2972.6,2972.1,0.12633804]
[1768961745614,13.9527215,2972.5,2972.1,0.12633804]
[1768961746650,13.9527215,2972.5,2972.1,0.68133804]
[1768961746954,13.9527215,2972.5,2972.1,0.45420611]
[1768961747249,13.9527215,2972.5,2972.1,0.42392069]
[1768961747830,13.9527215,2972.5,2972.3,0.001]
[1768961748025,13.9527215,2972.5,2972.1,0.42392069]
[1768961748026,14.02920079,2972.4,2972.1,0.42392069]
[1768961748419,14.02920079,2972.4,2972.1,1e-08]
[1768961749468,13.18792864,2972.3,2972.0,0.001]
[1768961749664,13.18792864,2972.3,2971.7,12.62287359]
[1768961749981,14.42868018,2972.2,2971.7,12.62287359]
[1768961750127,14.42868018,2972.2,2971.7,6.2075401]
[1768961750319,14.39502941,2972.2,2971.7,6.2075401]
[1768961750515,14.39502941,2972.2,2971.6,1.665]
[1768961750721,14.39502941,2972.2,2971.6,13.73287359]
[1768961750949,12.63392864,2972.0,2971.6,13.73287359]
[1768961751649,12.63392864,2972.0,2971.6,2.22]
[1768961753947,12.63392864,2972.0,2971.6,2.775]
[1768961755363,1.49490294,2972.1,2971.6,14.84287359]
[1768961755559,14.12883158,2972.1,2971.6,14.84287359]
[1768961755751,1.58899324,2972.0,2971.6,14.84287359]
[1768961756447,1.58899324,2972.0,2971.6,15.39787359]
[1768961756957,1.76110077,2972.2,2971.7,12.06787359]
[1768961756958,2.31510077,2972.2,2971.7,12.06787359]
[1768961757167,0.554,2972.2,2971.7,12.06787359]
[1768961757668,13.18792864,2972.2,2971.7,12.06787359]
[1768961758932,13.18792864,2972.2,2971.7,12.62287359]
[1768961760066,0.002,2971.8,2971.7,12.62287359]
[1768961760675,12.63392864,2973.0,2971.8,12.06787359]
[1768961760966,13.18792864,2972.9,2971.8,13.66316095]
[1768961761138,13.18792864,2972.9,2971.8,14.21816095]
[1768961761672,12.63592864,2973.1,2971.8,14.21816095]
[1768961761827,13.18992864,2973.1,2972.1,12.06787359]
[1768961762032,13.18992864,2973.1,2972.3,12.06787359]
[1768961762278,0.002,2973.1,2972.3,12.06787359]
[1768961763856,0.002,2973.1,2972.4,12.06787359]
[1768961764378,0.002,2973.1,2972.4,15.43211718]
[1768961764555,0.002,2973.1,2972.5,13.66316095]
[1768961764755,0.002,2973.1,2972.7,12.06787359]
[1768961765787,0.002,2973.2,2972.6,5.4521729]
[1768961766079,0.002,2973.2,2972.7,12.06787359]
[1768961766579,0.002,2973.2,2972.7,12.62287359]
[1768961766784,12.63592864,2973.2,2972.7,0.555]
[1768961767262,14.4537215,2973.2,2972.7,0.555]
[1768961767459,12.63392864,2972.9,2972.3,0.555]
[1768961767800,12.63392864,2972.9,2972.3,1e-08]
[1768961768457,12.63392864,2972.6,2971.8,0.50500001]
[1768961768653,12.63392864,2972.3,2971.8,0.50500001]
[1768961768864,12.63392864,2972.3,2971.8,0.55500001]
[1768961771083,15.99833011,2972.3,2971.8,0.55500001]
[1768961771257,12.63392864,2972.2,2971.8,1.11000001]
[1768961772764,12.63392864,2972.2,2972.0,0.001]
[1768961773061,14.4513215,2972.1,2971.8,1e-08]
[1768961773780,14.4513215,2972.1,2971.7,1e-08]
[1768961775495,14.4513215,2972.1,2971.4,0.001]
[1768961775496,12.71535131,2972.0,2971.4,0.001]
[1768961775660,12.71535131,2971.8,2970.9,12.50506283]
[1768961775992,12.71535131,2971.6,2970.9,12.50506283]
[1768961776291,13.26935131,2971.6,2970.9,13.06006283]
[1768961777257,0.554,2971.8,2970.9,13.06006283]
[1768961777460,12.71535131,2971.7,2970.9,13.06006283]
[1768961777671,12.71535131,2971.7,2970.9,14.36606911]
[1768961778067,4.62804209,2972.1,2971.1,11.95006283]
[1768961778068,1.26339286,2972.1,2971.1,11.95006283]
[1768961778292,13.26935131,2972.3,2971.1,11.95006283]
[1768961778494,13.26935131,2972.3,2971.1,12.50506283]
[1768961778789,12.71535131,2972.2,2971.1,12.50506283]
[1768961780901,12.71535131,2972.2,2971.1,13.06006283]
[1768961781783,12.71535131,2972.1,2971.1,13.06006283]
[1768961781982,12.71535131,2972.1,2971.3,11.95006283]
[1768961783696,12.71535131,2972.1,2971.3,12.50506283]
[1768961785605,0.001,2971.9,2971.3,12.50506283]
[1768961786309,0.001,2971.9,2971.3,13.06006283]
[1768961787008,12.71635131,2971.9,2971.3,13.06006283]
[1768961787989,12.71535131,2972.6,2971.4,11.95006283]
[1768961788183,12.71735131,2972.7,2971.4,11.95006283]
[1768961788910,12.71735131,2972.7,2971.4,12.50506283]
[1768961789113,12.71735131,2972.7,2971.6,11.95006283]
[1768961789314,12.71735131,2972.7,2971.8,11.95006283]
[1768961791208,12.71735131,2972.7,2971.8,12.50506283]
[1768961791511,16.08130416,2972.7,2971.8,12.50506283]
[1768961791696,12.71535131,2972.6,2971.8,12.50506283]
[1768961792201,12.71535131,2972.6,2971.8,13.86646911]
[1768961793812,12.71535131,2972.6,2971.8,14.42146911]
[1768961796401,12.71535131,2972.6,2971.9,11.95006283]
[1768961797316,0.001,2972.4,2971.9,11.95006283]
[1768961798018,0.001,2972.4,2972.0,11.95006283]
[1768961798786,0.001,2972.4,2972.0,12.50506283]
[1768961801221,0.001,2972.4,2972.0,13.06006283]
[1768961803827,0.001,2972.4,2972.0,13.61506283]
[1768961806308,0.001,2972.4,2972.0,14.17006283]
[1768961808749,0.001,2972.4,2972.0,14.72506283]
[1768961809331,0.002,2972.2,2972.0,14.72506283]
[1768961809673,0.001,2972.4,2972.1,11.98930865]
[1768961811062,0.001,2972.4,2972.1,12.54430865]
[1768961811865,0.001,2972.4,2972.1,14.5658808]
[1768961812532,12.33533929,2972.7,2972.3,11.98930865]
[1768961812533,0.002,2972.7,2972.3,11.98930865]
[1768961812738,12.33533929,2973.2,2972.6,11.98930865]
[1768961813326,12.33533929,2973.2,2972.6,12.54430865]
[1768961813543,13.62447322,2973.2,2972.6,12.54430865]
[1768961815832,13.62447322,2973.2,2972.6,13.09930865]
[1768961818345,13.62447322,2973.2,2972.6,13.65430865]
[1768961820568,13.62447322,2973.2,2972.6,14.20930865]
[1768961820770,12.33533929,2973.2,2972.6,14.20930865]
[1768961821566,12.33533929,2973.2,2972.8,0.001]
[1768961821936,0.002,2973.0,2972.8,0.001]
[1768961822946,12.33533929,2973.0,2972.6,2.22]
[1768961823147,1.23353393,2972.9,2972.6,14.20930865]
[1768961823470,0.556,2973.0,2972.6,14.20930865]
[1768961825241,0.556,2973.0,2972.6,14.76430865]
[1768961826962,0.002,2973.0,2972.6,14.76430865]
[1768961827359,0.002,2973.2,2972.7,11.98930865]
[1768961827565,0.002,2973.2,2972.7,12.54430865]
[1768961830263,0.002,2973.2,2972.7,13.09930865]
[1768961831387,12.33533929,2973.2,2972.7,13.09930865]
[1768961831793,0.002,2973.2,2972.7,13.09930865]
[1768961832646,0.002,2973.2,2972.7,13.65430865]
[1768961834092,0.002,2973.2,2972.9,0.001]
[1768961834250,0.002,2973.2,2972.9,11.99030865]
[1768961834445,0.002,2973.5,2973.1,11.98930865]
[1768961834863,0.002,2973.5,2973.1,12.54430865]
[1768961836046,0.002,2974.1,2973.3,11.71119072]
[1768961836244,0.002,2974.1,2973.3,12.93780979]
[1768961836245,12.40932567,2974.0,2973.3,12.93780979]
[1768961836677,12.40932567,2974.0,2973.3,11.71119072]
[1768961836888,12.40932567,2974.0,2973.1,0.555]
[1768961837188,11.85532567,2973.9,2972.9,0.001]
[1768961837354,11.85532567,2973.9,2973.1,0.555]
[1768961837555,11.85532567,2973.7,2973.1,0.555]
[1768961837794,11.85532567,2973.5,2973.1,0.555]
[1768961839869,11.85532567,2973.5,2973.1,1.11]
[1768961842099,11.85532567,2973.5,2973.1,1.665]
[1768961845435,11.85532567,2973.5,2973.1,2.22]
[1768961846007,0.002,2973.3,2973.1,2.22]
[1768961846214,11.85732567,2973.3,2973.1,2.22]
[1768961847719,12.40932567,2973.2,2972.9,0.001]
[1768961847919,12.40932567,2973.2,2972.7,0.8754489]
[1768961848816,1.18793257,2973.3,2972.7,12.58663962]
[1768961849124,0.002,2973.3,2972.7,12.58663962]
[1768961850519,0.002,2973.3,2972.7,13.14163962]
[1768961852920,11.85732567,2973.3,2972.7,13.14163962]
[1768961853118,11.85732567,2973.3,2972.7,13.69663962]
[1768961855117,11.85732567,2973.3,2972.7,1.9854489]
[1768961855334,13.43496349,2973.3,2972.7,1.9854489]
[1768961855505,13.43496349,2973.3,2972.7,2.5404489]
[1768961856236,13.43496349,2973.3,2972.7,14.25163962]
[1768961858433,13.43496349,2973.3,2972.7,14.80663962]
[1768961858635,13.43496349,2973.3,2972.9,0.001]
[1768961858803,11.85532567,2973.1,2972.9,0.001]
[1768961860915,11.85732567,2973.3,2972.9,0.556]
[1768961861115,11.85732567,2973.3,2972.9,12.26719072]
[1768961862311,12.41132567,2973.3,2972.9,12.26719072]
[1768961863104,0.002,2973.3,2972.9,12.26719072]
[1768961863409,0.556,2973.3,2972.9,1.111]
[1768961863615,12.80343075,2973.3,2972.9,1.111]
[1768961864630,12.80343075,2973.3,2972.9,12.82219072]
[1768961864835,0.556,2973.3,2972.9,12.82219072]
[1768961865024,0.002,2973.3,2972.9,12.82219072]
[1768961865736,0.002,2973.3,2972.9,13.37719072]
[1768961868038,3.36249778,2974.0,2972.9,13.37719072]
[1768961868039,11.08536134,2974.2,2973.3,11.33381841]
[1768961868240,0.554,2974.0,2973.3,11.33381841]
[1768961868543,0.554,2974.0,2973.3,12.95658782]
[1768961869542,11.63936134,2974.0,2973.3,12.95658782]
[1768961869913,11.63936134,2974.0,2973.3,11.33381841]
[1768961870306,0.002,2973.8,2973.3,11.33381841]
[1768961870507,11.08736134,2973.8,2973.0,11.33381841]
[1768961870740,11.08736134,2973.8,2972.9,2.776]
[1768961870926,11.08736134,2973.8,2973.0,11.33381841]
[1768961871130,11.08736134,2973.8,2972.9,14.10981841]
[1768961871131,12.58794641,2973.8,2972.9,14.10981841]
[1768961871303,12.58794641,2973.8,2972.9,2.776]
[1768961871509,11.08536134,2973.7,2972.9,2.776]
[1768961871833,11.08536134,2973.5,2972.9,14.10981841]
[1768961872342,12.24929747,2973.5,2972.9,14.10981841]
[1768961873205,12.24929747,2973.5,2972.9,14.66481841]
[1768961875038,12.24929747,2973.5,2972.9,3.331]
[1768961875609,11.08536134,2973.4,2972.9,3.886]
[1768961875804,11.08536134,2973.2,2972.9,3.886]
[1768961876412,11.08536134,2973.2,2972.9,0.51840976]
[1768961877061,11.63936134,2973.2,2972.7,3.0954489]
[1768961877382,2.11523527,2973.3,2972.8,11.33381841]
[1768961877533,0.554,2973.3,2972.8,11.33381841]
[1768961877956,11.63936134,2973.3,2972.8,11.88881841]
[1768961878164,11.08536134,2973.3,2972.8,11.88881841]
[1768961878370,1.50258507,2973.8,2973.0,11.33381841]
[1768961878526,0.556,2973.8,2973.0,11.33381841]
[1768961878836,11.64136134,2973.8,2973.0,11.33381841]
[1768961879835,11.08536134,2973.7,2973.0,11.33381841]
[1768961880431,11.08536134,2973.7,2973.0,11.88881841]
[1768961881132,11.08536134,2973.6,2973.0,0.555]
[1768961881331,12.58576822,2973.6,2972.8,0.555]
[1768961882254,11.08536134,2973.5,2972.8,1e-08]
[1768961882439,11.08536134,2973.3,2972.8,1e-08]
[1768961882638,11.08536134,2973.1,2972.8,1e-08]
[1768961882955,11.08536134,2972.9,2972.7,0.2721229]
[1768961883154,11.08536134,2972.9,2972.6,1e-08]
[1768961885468,11.08536134,2972.8,2972.6,1e-08]
[1768961885664,11.08536134,2972.8,2972.1,0.555]
[1768961885868,11.08536134,2972.6,2972.1,0.555]
[1768961886168,11.08536134,2972.4,2972.1,0.555]
[1768961887640,11.08536134,2972.3,2971.8,1.665]
[1768961889969,11.08536134,2972.3,2971.8,2.22]
[1768961890170,12.53032868,2972.2,2971.8,2.22]
[1768961892869,12.53032868,2972.2,2971.8,1e-08]
[1768961894145,11.08536134,2972.0,2971.8,1e-08]
[1768961894343,0.554,2972.1,2971.4,1e-08]
[1768961894344,11.08536134,2971.8,2971.4,1e-08]
[1768961894546,11.08536134,2971.5,2971.1,2e-08]
[1768961894850,11.08536134,2971.3,2970.9,1e-08]
[1768961896588,11.65057995,2971.2,2970.9,1e-08]
[1768961896897,11.65057995,2971.2,2970.3,11.56302252]
[1768961897683,11.65057995,2971.2,2970.3,12.11802252]
[1768961897848,2.32737973,2971.1,2970.3,12.11802252]
[1768961898183,12.20457995,2971.0,2970.3,12.11802252]
[1768961900196,12.20457995,2971.0,2970.3,12.67302252]
[1768961902388,0.554,2971.0,2970.3,12.67302252]
[1768961902598,0.554,2971.0,2970.3,13.22802252]
[1768961904498,12.20457995,2971.0,2970.3,13.22802252]
[1768961905396,11.65057995,2971.4,2970.4,11.56302252]
[1768961905599,0.554,2971.3,2970.4,11.56302252]
[1768961905991,3.36475014,2972.0,2970.7,11.56302252]
[1768961906192,0.002,2972.1,2970.7,11.56302252]
[1768961906193,11.65057995,2971.9,2970.7,11.56302252]
[1768961906491,12.20457995,2971.8,2970.7,11.56302252]
[1768961906672,12.20457995,2971.8,2970.9,11.56302252]
[1768961907076,11.65057995,2971.6,2970.7,11.56302252]
[1768961907777,11.65057995,2971.6,2970.7,12.11802252]
[1768961909175,11.65057995,2971.5,2970.7,12.11802252]
[1768961909380,11.65057995,2971.3,2970.7,12.11802252]
[1768961910903,11.65057995,2971.3,2970.7,12.67302252]
[1768961913188,11.65057995,2971.3,2970.7,13.22802252]
[1768961915610,11.65057995,2971.3,2970.7,13.78302252]
[1768961916002,12.87103794,2971.3,2970.7,2.22]
[1768961916330,11.65057995,2971.2,2970.7,2.22]
[1768961917611,11.65057995,2971.1,2970.7,2e-08]
[1768961917806,12.20457995,2971.0,2970.7,2e-08]
[1768961918045,12.20457995,2971.0,2970.7,0.55500002]
[1768961918832,13.42503794,2971.0,2970.5,11.56502252]
[1768961919627,13.42503794,2971.0,2970.5,0.002]
[1768961920304,13.42503794,2971.0,2970.5,11.56502252]
[1768961920504,0.554,2971.0,2970.5,12.12002252]
[1768961923035,0.554,2971.0,2970.5,12.67502252]